fUSD/lending_fUSD_20250629
["ID","MTS","AMOUNT","RATE_DAILY","PERIOD"]
[368568689,1751212248592,-745.35,0.00021917,2]
[368568691,1751212248602,-490.0,0.00021917,2]
[368568693,1751212248612,-117.53200889,0.00021917,2]
[368568695,1751212248626,-372.46799111,0.00021917,2]
[368568698,1751212248637,-490.0,0.00021917,2]
[368568700,1751212248647,-626.96,0.00021917,2]
[368568702,1751212248657,-998.15,0.00021917,2]
[368568704,1751212248667,-490.0,0.00021917,2]
[368568706,1751212248678,-490.0,0.00021917,2]
[368568708,1751212248687,-490.0,0.00021917,2]
[368568710,1751212248697,-547.26,0.00021917,2]
[368568712,1751212248707,-1514.79,0.00021917,2]
[368568714,1751212248717,-490.0,0.00021917,2]
[368568716,1751212248727,-490.0,0.00021917,2]
[368568718,1751212248737,-490.0,0.00021917,2]
[368568720,1751212248747,-490.0,0.00021917,2]
[368568722,1751212248757,-490.0,0.00021917,2]
[368568724,1751212248767,-490.0,0.00021917,2]
[368568726,1751212248777,-534.31,0.00021917,2]
[368568728,1751212248786,-490.0,0.00021917,2]
[368568730,1751212248796,-490.0,0.00021917,2]
[368568732,1751212248806,-490.0,0.00021917,2]
[368568735,1751212248815,-490.0,0.00021917,2]
[368568737,1751212248826,-490.0,0.00021917,2]
[368568739,1751212248837,-490.0,0.00021917,2]
[368568741,1751212248846,-3615.151463,0.00021917,2]
[368568743,1751212248856,-171.40466531,0.00021917,2]
[368568745,1751212248865,-490.0,0.00021917,2]
[368568747,1751212248875,-490.0,0.00021917,2]
[368568749,1751212248885,-156.338804,0.00021917,2]
[368568751,1751212248895,-490.0,0.00021917,2]
[368568753,1751212248905,-490.0,0.00021917,2]
[368568755,1751212248916,-490.0,0.00021917,2]
[368568757,1751212248925,-624.000917,0.00021917,2]
[368568759,1751212248935,-490.0,0.00021917,2]
[368568762,1751212248945,-490.0,0.00021917,2]
[368568764,1751212248955,-490.0,0.00021917,2]
[368568766,1751212248964,-490.0,0.00021917,2]
[368568768,1751212248974,-155.562021,0.00021917,2]
[368568770,1751212248987,-490.0,0.00021917,2]
[368568772,1751212248996,-490.0,0.00021917,2]
[368568774,1751212249008,-490.0,0.00021917,2]
[368568776,1751212249018,-490.0,0.00021917,2]
[368568778,1751212249028,-754.52,0.00021917,2]
[368568780,1751212249039,-490.0,0.00021917,2]
[368568782,1751212249049,-635.34,0.00021917,2]
[368568784,1751212249059,-460.0,0.00021917,2]
[368568786,1751212249070,-509.06,0.00021917,2]
[368568788,1751212249080,-490.0,0.00021917,2]
[368568790,1751212249091,-490.0,0.00021917,2]
[368568792,1751212249101,-490.0,0.00021917,2]
[368568794,1751212249111,-3557.511487,0.00021917,2]
[368568796,1751212249121,-490.0,0.00021917,2]
[368568798,1751212249131,-490.0,0.00021917,2]
[368568800,1751212249141,-490.0,0.00021917,2]
[368568802,1751212249150,-490.0,0.00021917,2]
[368568804,1751212249161,-908.66,0.00021917,2]
[368568806,1751212249171,-490.0,0.00021917,2]
[368568808,1751212249180,-490.0,0.00021917,2]
[368568811,1751212249190,-490.0,0.00021917,2]
[368568813,1751212249200,-490.0,0.00021917,2]
[368568815,1751212249210,-271.23986715,0.00021917,2]
[368568817,1751212249220,-490.0,0.00021917,2]
[368568819,1751212249230,-597.83409846,0.00021917,2]
[368568821,1751212249240,-490.0,0.00021917,2]
[368568823,1751212249251,-490.0,0.00021917,2]
[368568825,1751212249262,-490.0,0.00021917,2]
[368568827,1751212249272,-490.0,0.00021917,2]
[368568829,1751212249282,-574.53,0.00021917,2]
[368568831,1751212249292,-490.0,0.00021917,2]
[368568833,1751212249302,-490.0,0.00021917,2]
[368568835,1751212249311,-490.0,0.00021917,2]
[368568837,1751212249321,-490.0,0.00021917,2]
[368568839,1751212249331,-490.0,0.00021917,2]
[368568841,1751212249341,-494.21843921,0.00021917,2]
[368568843,1751212249350,-490.0,0.00021917,2]
[368568845,1751212249362,-490.0,0.00021917,2]
[368568847,1751212249371,-844.77,0.00021917,2]
[368568849,1751212249380,-269.12256494,0.00021917,2]
[368568851,1751212249390,-151.0,0.00021917,2]
[368568853,1751212249399,-490.0,0.00021917,2]
[368568855,1751212249409,-151.0,0.00021917,2]
[368568857,1751212249419,-332.32627313,0.00021917,2]
[368568859,1751212249429,-490.0,0.00021917,2]
[368568861,1751212249439,-490.0,0.00021917,2]
[368568863,1751212249449,-490.0,0.00021917,2]
[368568865,1751212249459,-707.06,0.00021917,2]
[368568868,1751212249469,-151.0,0.00021917,2]
[368568870,1751212249478,-151.0,0.00021917,2]
[368568872,1751212249488,-490.0,0.00021917,2]
[368568874,1751212249497,-490.0,0.00021917,2]
[368568876,1751212249507,-569.33,0.00021917,2]
[368568878,1751212249516,-490.0,0.00021917,2]
[368568880,1751212249527,-151.887038,0.00021917,2]
[368568882,1751212249536,-622.64,0.00021917,2]
[368568884,1751212249547,-490.0,0.00021917,2]
[368568886,1751212249557,-490.0,0.00021917,2]
[368568888,1751212249566,-509.47,0.00021917,2]
[368568890,1751212249576,-490.0,0.00021917,2]
[368568892,1751212249586,-975.93,0.00021917,2]
[368568894,1751212249597,-1561.49,0.00021917,2]
[368568896,1751212249607,-1179.12,0.00021917,2]
[368568898,1751212249617,-1261.91,0.00021917,2]
[368568900,1751212249627,-490.0,0.00021917,2]
[368568903,1751212249637,-602.48,0.00021917,2]
[368568905,1751212249647,-176.903636,0.00021917,2]
[368568907,1751212249658,-490.0,0.00021917,2]
[368568909,1751212249668,-491.12107372,0.00021917,2]
[368568911,1751212249678,-586.21,0.00021917,2]
[368568913,1751212249687,-718.89,0.00021917,2]
[368568915,1751212249697,-490.0,0.00021917,2]
[368568917,1751212249707,-494.21062985,0.00021917,2]
[368568919,1751212249717,-490.0,0.00021917,2]
[368568921,1751212249728,-493.87071187,0.00021917,2]
[368568923,1751212249737,-490.0,0.00021917,2]
[368568925,1751212249747,-490.0,0.00021917,2]
[368568927,1751212249757,-490.0,0.00021917,2]
[368568929,1751212249767,-564.49,0.00021917,2]
[368568931,1751212249776,-490.0,0.00021917,2]
[368568933,1751212249786,-520.08,0.00021917,2]
[368568935,1751212249795,-490.0,0.00021917,2]
[368568937,1751212249805,-490.0,0.00021917,2]
[368568939,1751212249814,-490.0,0.00021917,2]
[368568941,1751212249825,-490.0,0.00021917,2]
[368568943,1751212249835,-3683.681151,0.00021917,2]
[368568945,1751212249845,-490.0,0.00021917,2]
[368568947,1751212249854,-490.0,0.00021917,2]
[368568949,1751212249864,-490.0,0.00021917,2]
[368568951,1751212249874,-490.0,0.00021917,2]
[368568953,1751212249886,-544.12259491,0.00021917,2]
[368568955,1751212249895,-490.0,0.00021917,2]
[368568957,1751212249905,-490.0,0.00021917,2]
[368568959,1751212249915,-490.0,0.00021917,2]
[368568961,1751212249925,-490.0,0.00021917,2]
[368568963,1751212249934,-744.67,0.00021917,2]
[368568965,1751212249943,-533.68,0.00021917,2]
[368568967,1751212249953,-490.0,0.00021917,2]
[368568969,1751212249963,-490.0,0.00021917,2]
[368568971,1751212249973,-490.0,0.00021917,2]
[368568973,1751212249983,-156.94246,0.00021917,2]
[368568975,1751212249994,-631.72,0.00021917,2]
[368568978,1751212250005,-490.0,0.00021917,2]
[368568980,1751212250016,-551.25,0.00021917,2]
[368568982,1751212250025,-490.0,0.00021917,2]
[368568984,1751212250035,-490.0,0.00021917,2]
[368568986,1751212250045,-707.15,0.00021917,2]
[368568988,1751212250055,-490.0,0.00021917,2]
[368568990,1751212250064,-541.79,0.00021917,2]
[368568992,1751212250074,-511.09,0.00021917,2]
[368568994,1751212250084,-153.018974,0.00021917,2]
[368568996,1751212250093,-490.0,0.00021917,2]
[368568998,1751212250103,-490.0,0.00021917,2]
[368569000,1751212250112,-490.0,0.00021917,2]
[368569002,1751212250122,-914.3,0.00021917,2]
[368569004,1751212250132,-490.0,0.00021917,2]
[368569006,1751212250142,-490.0,0.00021917,2]
[368569008,1751212250152,-380.21264633,0.00021917,2]
[368569010,1751212250162,-490.0,0.00021917,2]
[368569012,1751212250172,-490.0,0.00021917,2]
[368569014,1751212250181,-490.0,0.00021917,2]
[368569016,1751212250191,-490.0,0.00021917,2]
[368569019,1751212250200,-490.0,0.00021917,2]
[368569021,1751212250210,-572.19,0.00021917,2]
[368569023,1751212250221,-886.31,0.00021917,2]
[368569025,1751212250231,-490.0,0.00021917,2]
[368569027,1751212250241,-490.0,0.00021917,2]
[368569029,1751212250251,-490.0,0.00021917,2]
[368569031,1751212250260,-457.23616746,0.00021917,2]
[368569033,1751212250270,-203.211704,0.00021917,2]
[368569035,1751212250280,-490.0,0.00021917,2]
[368569037,1751212250290,-490.0,0.00021917,2]
[368569039,1751212250300,-490.0,0.00021917,2]
[368569041,1751212250310,-490.0,0.00021917,2]
[368569042,1751212250319,-547.4,0.00021917,2]
[368569043,1751212250328,-490.0,0.00021917,2]
[368569044,1751212250337,-490.0,0.00021917,2]
[368569045,1751212250347,-502.77,0.00021917,2]
[368569046,1751212250357,-490.0,0.00021917,2]
[368569047,1751212250369,-726.59,0.00021917,2]
[368569048,1751212250378,-725.22,0.00021917,2]
[368569049,1751212250388,-490.0,0.00021917,2]
[368569050,1751212250397,-546.14285237,0.00021917,2]
[368569051,1751212250407,-490.0,0.00021917,2]
[368569052,1751212250417,-490.0,0.00021917,2]
[368569053,1751212250426,-490.0,0.00021917,2]
[368569054,1751212250436,-490.0,0.00021917,2]
[368569056,1751212250446,-500.0,0.00021917,2]
[368569058,1751212250455,-520.0,0.00021917,2]
[368569060,1751212250465,-490.0,0.00021917,2]
[368569062,1751212250474,-490.0,0.00021917,2]
[368569064,1751212250484,-490.0,0.00021917,2]
[368569066,1751212250494,-602.97,0.00021917,2]
[368569068,1751212250503,-490.0,0.00021917,2]
[368569070,1751212250513,-587.53,0.00021917,2]
[368569072,1751212250523,-490.0,0.00021917,2]
[368569074,1751212250533,-490.0,0.00021917,2]
[368569076,1751212250542,-490.0,0.00021917,2]
[368569078,1751212250551,-490.0,0.00021917,2]
[368569080,1751212250561,-490.0,0.00021917,2]
[368569082,1751212250571,-490.0,0.00021917,2]
[368569084,1751212250580,-490.0,0.00021917,2]
[368569086,1751212250590,-490.0,0.00021917,2]
[368569088,1751212250599,-490.0,0.00021917,2]
[368569090,1751212250609,-490.0,0.00021917,2]
[368569092,1751212250619,-600.4,0.00021917,2]
[368569094,1751212250628,-498.87,0.00021917,2]
[368569096,1751212250637,-220.94182028,0.00021917,2]
[368569098,1751212250647,-490.0,0.00021917,2]
[368569100,1751212250657,-490.0,0.00021917,2]
[368569103,1751212250667,-490.0,0.00021917,2]
[368569105,1751212250676,-825.46,0.00021917,2]
[368569107,1751212250686,-491.26376242,0.00021917,2]
[368569109,1751212250695,-490.0,0.00021917,2]
[368569111,1751212250704,-490.0,0.00021917,2]
[368569113,1751212250714,-490.0,0.00021917,2]
[368569115,1751212250724,-773.39,0.00021917,2]
[368569117,1751212250734,-490.0,0.00021917,2]
[368569119,1751212250744,-403.74063058,0.00021917,2]
[368569121,1751212250754,-500.0,0.00021917,2]
[368569123,1751212250764,-490.0,0.00021917,2]
[368569163,1751212251132,-719.71,0.00021917,2]
[368569165,1751212251143,-490.0,0.00021917,2]
[368569167,1751212251152,-675.65,0.00021917,2]
[368569169,1751212251162,-806.95,0.00021917,2]
[368569171,1751212251172,-789.1,0.00021917,2]
[368569173,1751212251182,-670.78,0.00021917,2]
[368569175,1751212251191,-490.0,0.00021917,2]
[368569177,1751212251201,-490.0,0.00021917,2]
[368569179,1751212251210,-490.0,0.00021917,2]
[368569181,1751212251219,-490.0,0.00021917,2]
[368569183,1751212251228,-490.0,0.00021917,2]
[368569185,1751212251237,-490.0,0.00021917,2]
[368569187,1751212251247,-490.0,0.00021917,2]
[368569189,1751212251256,-710.61,0.00021917,2]
[368569191,1751212251266,-490.0,0.00021917,2]
[368569193,1751212251275,-232.94517223,0.00021917,2]
[368569197,1751212251310,-257.05482777,0.00021917,2]
[368569200,1751212251320,-490.0,0.00021917,2]
[368569201,1751212251329,-490.0,0.00021917,2]
[368569204,1751212251338,-1791.22,0.00021917,2]
[368569206,1751212251348,-651.51,0.00021917,2]
[368569208,1751212251359,-490.0,0.00021917,2]
[368569209,1751212251370,-531.57,0.00021917,2]
[368569212,1751212251380,-504.01,0.00021917,2]
[368569214,1751212251389,-490.0,0.00021917,2]
[368569216,1751212251399,-490.0,0.00021917,2]
[368569218,1751212251410,-490.0,0.00021917,2]
[368569220,1751212251419,-490.0,0.00021917,2]
[368569222,1751212251429,-805.66,0.00021917,2]
[368569224,1751212251440,-490.0,0.00021917,2]
[368569226,1751212251450,-490.0,0.00021917,2]
[368569228,1751212251460,-490.0,0.00021917,2]
[368569230,1751212251469,-1333.27214346,0.00021917,2]
[368569235,1751212251513,-860.89785654,0.00021917,2]
[368569237,1751212251522,-2733.18,0.00021917,2]
[368569239,1751212251532,-490.0,0.00021917,2]
[368569241,1751212251541,-490.0,0.00021917,2]
[368569243,1751212251551,-490.0,0.00021917,2]
[368569245,1751212251560,-490.0,0.00021917,2]
[368569247,1751212251570,-1111.72,0.00021917,2]
[368569250,1751212251579,-541.62,0.00021917,2]
[368569252,1751212251588,-743.95,0.00021917,2]
[368569253,1751212251597,-1362.55,0.00021917,2]
[368569256,1751212251607,-604.91,0.00021917,2]
[368569258,1751212251616,-490.0,0.00021917,2]
[368569260,1751212251627,-490.0,0.00021917,2]
[368569261,1751212251637,-492.85634952,0.00021917,2]
[368569263,1751212251647,-490.0,0.00021917,2]
[368569265,1751212251657,-490.0,0.00021917,2]
[368569267,1751212251666,-490.0,0.00021917,2]
[368569270,1751212251676,-2236.15,0.00021917,2]
[368569271,1751212251687,-490.0,0.00021917,2]
[368569274,1751212251697,-545.09,0.00021917,2]
[368569276,1751212251706,-490.0,0.00021917,2]
[368569278,1751212251715,-1954.02,0.00021917,2]
[368569279,1751212251725,-710.97,0.00021917,2]
[368569282,1751212251734,-490.0,0.00021917,2]
[368569284,1751212251743,-1500.0,0.00021917,2]
[368569285,1751212251754,-490.0,0.00021917,2]
[368569288,1751212251764,-490.0,0.00021917,2]
[368569290,1751212251773,-1885.1,0.00021917,2]
[368569292,1751212251783,-10090.96,0.00021917,2]
[368569294,1751212251792,-492.64,0.00021917,2]
[368569296,1751212251801,-484.41321971,0.00021917,2]
[368569298,1751212251810,-490.0,0.00021917,2]
[368569300,1751212251819,-490.0,0.00021917,2]
[368569302,1751212251829,-490.0,0.00021917,2]
[368569304,1751212251839,-1124.08,0.00021917,2]
[368569306,1751212251849,-840.16,0.00021917,2]
[368569308,1751212251859,-490.0,0.00021917,2]
[368569310,1751212251868,-490.0,0.00021917,2]
[368569312,1751212251877,-547.74,0.00021917,2]
[368569314,1751212251887,-648.41,0.00021917,2]
[368569316,1751212251896,-1639.42,0.00021917,2]
[368569318,1751212251907,-490.0,0.00021917,2]
[368569320,1751212251916,-511.01214898,0.00021917,2]
[368569322,1751212251925,-490.0,0.00021917,2]
[368569324,1751212251935,-490.0,0.00021917,2]
[368569326,1751212251944,-490.0,0.00021917,2]
[368569328,1751212251954,-490.0,0.00021917,2]
[368569330,1751212251963,-490.0,0.00021917,2]
[368569332,1751212251973,-552.29986578,0.00021917,2]
[368569334,1751212251983,-490.0,0.00021917,2]
[368569336,1751212251992,-490.0,0.00021917,2]
[368569338,1751212252002,-490.0,0.00021917,2]
[368569340,1751212252011,-490.0,0.00021917,2]
[368569342,1751212252021,-490.0,0.00021917,2]
[368569344,1751212252030,-490.0,0.00021917,2]
[368569346,1751212252041,-490.0,0.00021917,2]
[368569348,1751212252050,-490.0,0.00021917,2]
[368569350,1751212252062,-490.0,0.00021917,2]
[368569352,1751212252071,-490.0,0.00021917,2]
[368569354,1751212252080,-490.0,0.00021917,2]
[368569356,1751212252089,-1178.57,0.00021917,2]
[368569358,1751212252100,-1432.4,0.00021917,2]
[368569360,1751212252110,-490.0,0.00021917,2]
[368569362,1751212252118,-490.0,0.00021917,2]
[368569364,1751212252127,-490.0,0.00021917,2]
[368569366,1751212252137,-490.0,0.00021917,2]
[368569368,1751212252147,-1157.58,0.00021917,2]
[368569370,1751212252158,-490.0,0.00021917,2]
[368569372,1751212252167,-581.05,0.00021917,2]
[368569374,1751212252176,-490.0,0.00021917,2]
[368569376,1751212252186,-1960.17,0.00021917,2]
[368569378,1751212252195,-490.0,0.00021917,2]
[368569381,1751212252205,-490.0,0.00021917,2]
[368569383,1751212252214,-490.0,0.00021917,2]
[368569385,1751212252224,-1211.08,0.00021917,2]
[368569387,1751212252234,-1348.76,0.00021917,2]
[368569389,1751212252243,-490.0,0.00021917,2]
[368569391,1751212252253,-1016.16,0.00021917,2]
[368569393,1751212252262,-490.0,0.00021917,2]
[368569395,1751212252272,-535.95,0.00021917,2]
[368569397,1751212252281,-490.0,0.00021917,2]
[368569399,1751212252292,-2136.35,0.00021917,2]
[368569401,1751212252302,-490.0,0.00021917,2]
[368569403,1751212252311,-490.0,0.00021917,2]
[368569405,1751212252320,-163.585531,0.00021917,2]
[368569407,1751212252330,-490.0,0.00021917,2]
[368569409,1751212252339,-1845.14,0.00021917,2]
[368569411,1751212252348,-490.0,0.00021917,2]
[368569413,1751212252358,-490.0,0.00021917,2]
[368569415,1751212252369,-490.0,0.00021917,2]
[368569417,1751212252378,-339.59021432,0.00021917,2]
[368569419,1751212252388,-490.0,0.00021917,2]
[368569421,1751212252397,-490.0,0.00021917,2]
[368569423,1751212252407,-708.68,0.00021917,2]
[368569425,1751212252416,-152.58175,0.00021917,2]
[368569427,1751212252425,-995.71,0.00021917,2]
[368569429,1751212252435,-490.0,0.00021917,2]
[368569431,1751212252445,-490.0,0.00021917,2]
[368569433,1751212252454,-1193.88,0.00021917,2]
[368569434,1751212252464,-1064.37,0.00021917,2]
[368569437,1751212252473,-490.0,0.00021917,2]
[368569439,1751212252483,-490.0,0.00021917,2]
[368569441,1751212252492,-490.0,0.00021917,2]
[368569443,1751212252502,-523.26,0.00021917,2]
[368569445,1751212252512,-490.0,0.00021917,2]
[368569447,1751212252522,-1809.41,0.00021917,2]
[368569449,1751212252531,-1130.53,0.00021917,2]
[368569451,1751212252540,-490.0,0.00021917,2]
[368569453,1751212252550,-490.0,0.00021917,2]
[368569455,1751212252559,-490.0,0.00021917,2]
[368569457,1751212252568,-1429.02,0.00021917,2]
[368569459,1751212252578,-151.0,0.00021917,2]
[368569461,1751212252588,-490.0,0.00021917,2]
[368569463,1751212252597,-490.0,0.00021917,2]
[368569465,1751212252606,-490.0,0.00021917,2]
[368569467,1751212252616,-494.55336175,0.00021917,2]
[368569469,1751212252625,-490.0,0.00021917,2]
[368569471,1751212252635,-1687.32,0.00021917,2]
[368569473,1751212252645,-490.0,0.00021917,2]
[368569475,1751212252654,-1834.06,0.00021917,2]
[368569477,1751212252664,-490.0,0.00021917,2]
[368569479,1751212252674,-490.0,0.00021917,2]
[368569481,1751212252683,-490.0,0.00021917,2]
[368569483,1751212252693,-490.0,0.00021917,2]
[368569485,1751212252702,-490.0,0.00021917,2]
[368569487,1751212252711,-490.0,0.00021917,2]
[368569489,1751212252721,-1149.12,0.00021917,2]
[368569491,1751212252730,-490.0,0.00021917,2]
[368569493,1751212252740,-608.84,0.00021917,2]
[368569495,1751212252749,-490.0,0.00021917,2]
[368569497,1751212252759,-3170.75,0.00021917,2]
[368569499,1751212252769,-490.0,0.00021917,2]
[368569501,1751212252778,-490.0,0.00021917,2]
[368569503,1751212252788,-490.0,0.00021917,2]
[368569505,1751212252797,-1406.15,0.00021917,2]
[368569507,1751212252807,-493.06,0.00021917,2]
[368569509,1751212252816,-490.0,0.00021917,2]
[368569511,1751212252825,-490.0,0.00021917,2]
[368569513,1751212252837,-490.0,0.00021917,2]
[368569515,1751212252846,-207.32375085,0.00021917,2]
[368569517,1751212252857,-430.97,0.00021917,2]
[368569519,1751212252867,-500.0,0.00021917,2]
[368569521,1751212252877,-490.0,0.00021917,2]
[368569523,1751212252886,-490.0,0.00021917,2]
[368569525,1751212252896,-1449.99,0.00021917,2]
[368569527,1751212252906,-490.0,0.00021917,2]
[368569529,1751212252915,-490.0,0.00021917,2]
[368569531,1751212252925,-490.0,0.00021917,2]
[368569533,1751212252934,-828.57,0.00021917,2]
[368569535,1751212252944,-494.49,0.00021917,2]
[368569537,1751212252953,-1915.33,0.00021917,2]
[368569539,1751212252963,-490.0,0.00021917,2]
[368569541,1751212252972,-650.83,0.00021917,2]
[368569543,1751212252984,-555.17,0.00021917,2]
[368569546,1751212252994,-490.0,0.00021917,2]
[368569548,1751212253004,-1687.14,0.00021917,2]
[368569550,1751212253014,-490.0,0.00021917,2]
[368569551,1751212253023,-1059.6,0.00021917,2]
[368569554,1751212253033,-490.0,0.00021917,2]
[368569556,1751212253043,-490.0,0.00021917,2]
[368569557,1751212253051,-2286.88946292,0.00021917,2]
[368569561,1751212253077,-76.52053708,0.00021917,2]
[368569563,1751212253086,-490.0,0.00021917,2]
[368569565,1751212253095,-1165.12,0.00021917,2]
[368569567,1751212253105,-490.0,0.00021917,2]
[368569569,1751212253114,-490.0,0.00021917,2]
[368569571,1751212253123,-490.0,0.00021917,2]
[368569573,1751212253133,-490.0,0.00021917,2]
[368569575,1751212253142,-156.209314,0.00021917,2]
[368569577,1751212253151,-490.0,0.00021917,2]
[368569579,1751212253161,-1078.9,0.00021917,2]
[368569581,1751212253170,-1861.38,0.00021917,2]
[368569583,1751212253180,-490.0,0.00021917,2]
[368569584,1751212253189,-490.0,0.00021917,2]
[368569585,1751212253198,-490.0,0.00021917,2]
[368569586,1751212253208,-490.0,0.00021917,2]
[368569587,1751212253217,-504.48208532,0.00021917,2]
[368569588,1751212253227,-493.72,0.00021917,2]
[368569589,1751212253236,-490.0,0.00021917,2]
[368569590,1751212253246,-1537.37,0.00021917,2]
[368569591,1751212253255,-490.0,0.00021917,2]
[368569592,1751212253265,-500.0,0.00021917,2]
[368569593,1751212253275,-490.0,0.00021917,2]
[368569594,1751212253284,-2319.59,0.00021917,2]
[368569595,1751212253294,-409.00083543,0.00021917,2]
[368569596,1751212253303,-490.0,0.00021917,2]
[368569598,1751212253312,-490.0,0.00021917,2]
[368569600,1751212253322,-1120.29,0.00021917,2]
[368569602,1751212253332,-490.0,0.00021917,2]
[368569604,1751212253341,-2266.78,0.00021917,2]
[368569606,1751212253350,-662.15,0.00021917,2]
[368569608,1751212253363,-490.0,0.00021917,2]
[368569610,1751212253373,-151.0,0.00021917,2]
[368569612,1751212253381,-490.0,0.00021917,2]
[368569614,1751212253391,-490.0,0.00021917,2]
[368569616,1751212253400,-1978.1,0.00021917,2]
[368569618,1751212253410,-500.0,0.00021917,2]
[368569620,1751212253419,-490.0,0.00021917,2]
[368569622,1751212253429,-548.0,0.00021917,2]
[368569624,1751212253440,-248.73323565,0.00021917,2]
[368569626,1751212253449,-863.96,0.00021917,2]
[368569639,1751212253566,-490.0,0.00021917,2]
[368569642,1751212253577,-613.09,0.00021917,2]
[368569644,1751212253586,-490.0,0.00021917,2]
[368569646,1751212253595,-1091.0,0.00021917,2]
[368569647,1751212253604,-490.0,0.00021917,2]
[368569650,1751212253614,-500.0,0.00021917,2]
[368569651,1751212253625,-500.0,0.00021917,2]
[368569653,1751212253633,-500.0,0.00021917,2]
[368569656,1751212253643,-500.0,0.00021917,2]
[368569657,1751212253653,-490.0,0.00021917,2]
[368569659,1751212253663,-500.0,0.00021917,2]
[368569661,1751212253672,-500.0,0.00021917,2]
[368569663,1751212253681,-500.0,0.00021917,2]
[368569665,1751212253690,-500.0,0.00021917,2]
[368569667,1751212253701,-490.0,0.00021917,2]
[368569669,1751212253711,-500.0,0.00021917,2]
[368569671,1751212253721,-2937.23,0.00021917,2]
[368569673,1751212253732,-500.0,0.00021917,2]
[368569675,1751212253741,-490.0,0.00021917,2]
[368569678,1751212253751,-929.75,0.00021917,2]
[368569679,1751212253760,-490.0,0.00021917,2]
[368569681,1751212253770,-490.0,0.00021917,2]
[368569684,1751212253780,-490.0,0.00021917,2]
[368569686,1751212253789,-490.0,0.00021917,2]
[368569688,1751212253799,-529.85,0.00021917,2]
[368569689,1751212253807,-1687.7,0.00021917,2]
[368569691,1751212253816,-151.750269,0.00021917,2]
[368569693,1751212253826,-490.0,0.00021917,2]
[368569696,1751212253836,-490.0,0.00021917,2]
[368569698,1751212253845,-1907.05,0.00021917,2]
[368569699,1751212253855,-490.0,0.00021917,2]
[368569701,1751212253865,-901.54,0.00021917,2]
[368569703,1751212253873,-1756.41,0.00021917,2]
[368569705,1751212253883,-490.0,0.00021917,2]
[368569707,1751212253893,-682.59,0.00021917,2]
[368569709,1751212253903,-1123.83,0.00021917,2]
[368569711,1751212253912,-490.0,0.00021917,2]
[368569713,1751212253922,-490.0,0.00021917,2]
[368569716,1751212253931,-490.0,0.00021917,2]
[368569717,1751212253940,-490.63868555,0.00021917,2]
[368569719,1751212253950,-490.0,0.00021917,2]
[368569722,1751212253959,-1421.41,0.00021917,2]
[368569723,1751212253968,-508.96,0.00021917,2]
[368569726,1751212253978,-2482.63,0.00021917,2]
[368569727,1751212253988,-490.0,0.00021917,2]
[368569729,1751212253997,-3422.33,0.00021917,2]